fUSD/lending_fUSD_20240426
["ID","MTS","AMOUNT","RATE_DAILY","PERIOD"]
[323702907,1714168261814,-1304.73,0.00014794,2]
[323702908,1714168261823,-777.79,0.00014794,2]
[323702909,1714168261834,-4047.72,0.00014794,2]
[323702910,1714168261843,-1505.07,0.00014794,2]
[323702911,1714168261855,-1039.78,0.00014794,2]
[323702912,1714168261865,-500.0,0.00014794,2]
[323702913,1714168261875,-1828.28,0.00014794,2]
[323702914,1714168261886,-1743.91,0.00014794,2]
[323702915,1714168261897,-540.43,0.00014794,2]
[323702916,1714168261909,-500.0,0.00014794,2]
[323702917,1714168261919,-497.56741253,0.00014794,2]
[323702918,1714168261929,-1023.77,0.00014794,2]
[323702919,1714168261938,-350.0,0.00014795,2]
[323702920,1714168261949,-6705.74562591,0.000149,2]
[323702921,1714168261959,-627.37772295,0.000149,2]
[323702922,1714168261969,-283.77,0.00014918,2]
[323702923,1714168261978,-617.51446249,0.00015,2]
[323702924,1714168261988,-155.0,0.00015,2]
[323702925,1714168261998,-76756.53005702,0.00015,2]
[323702926,1714168262008,-4471.9826753,0.00015,2]
[323702927,1714168262023,-321.44701767,0.00015,2]
[323702928,1714168262034,-155.06433216,0.00015,2]
[323702929,1714168262045,-200.0,0.00015,2]
[323702930,1714168262054,-750.0,0.00015,3]
[323702931,1714168262065,-1338.0,0.00015,2]
[323702932,1714168262075,-10865.0,0.00015,2]
[323702933,1714168262084,-1000.34,0.00015,2]
[323702934,1714168262094,-313.8,0.00015,2]
[323702935,1714168262105,-1125.0,0.00015068,10]
[323702936,1714168262114,-511.0,0.00015068,2]
[323702937,1714168262123,-524.68000093,0.00015068,2]
[323702938,1714168262132,-500.0,0.00015068,2]
[323702939,1714168262141,-464.58050137,0.00015068,2]
[323702940,1714168262151,-285.09952391,0.00015068,2]
[323702941,1714168262160,-500.0,0.00015068,2]
[323702942,1714168262170,-368.27436086,0.00015068,2]
[323702943,1714168262180,-240.1764732,0.00015068,2]
[323702944,1714168262239,-659.0,0.00015068,2]
[323702945,1714168262250,-500.0,0.00015068,2]
[323702946,1714168262259,-500.0,0.00015068,2]
[323702947,1714168262268,-500.0,0.00015068,2]
[323702948,1714168262279,-709.11,0.00015068,2]
[323702949,1714168262289,-573.99,0.00015068,2]
[323702950,1714168262299,-500.0,0.00015068,2]
[323702951,1714168262309,-500.0,0.00015068,2]
[323702952,1714168262320,-6256.15,0.00015068,2]
[323702953,1714168262330,-763.76,0.00015068,2]
[323702954,1714168262340,-500.0,0.00015068,2]
[323702955,1714168262349,-537.61,0.00015068,2]
[323702956,1714168262358,-500.0,0.00015068,2]
[323702957,1714168262369,-513.68,0.00015068,2]
[323702958,1714168262378,-1048.28,0.00015068,2]
[323702959,1714168262389,-454.03764429,0.00015068,2]
[323702960,1714168262399,-500.0,0.00015068,2]
[323702961,1714168262408,-998.37,0.00015068,2]
[323702962,1714168262417,-2322.81,0.00015068,2]
[323702963,1714168262426,-557.8,0.00015068,2]
[323702964,1714168262435,-529.95,0.00015068,2]
[323702965,1714168262444,-535.33,0.00015068,2]
[323702966,1714168262454,-2084.26,0.00015068,2]
[323702967,1714168262464,-500.0,0.00015068,2]
[323702968,1714168262473,-500.0,0.00015068,2]
[323702969,1714168262483,-500.0,0.00015068,2]
[323702970,1714168262492,-500.0,0.00015068,2]
[323702971,1714168262502,-630.65,0.00015068,2]
[323702972,1714168262510,-583.6,0.00015068,2]
[323702973,1714168262519,-500.0,0.00015068,2]
[323702974,1714168262529,-969.38,0.00015068,2]
[323702975,1714168262538,-1520.72,0.00015068,2]
[323702976,1714168262547,-500.0,0.00015068,2]
[323702977,1714168262557,-2307.71,0.00015068,2]
[323702978,1714168262566,-500.0,0.00015068,2]
[323702979,1714168262576,-1213.91,0.00015068,2]
[323702980,1714168262585,-500.0,0.00015068,2]
[323702981,1714168262596,-21926.28,0.00015068,2]
[323702982,1714168262606,-519.31,0.00015068,2]
[323702983,1714168262617,-623.75,0.00015068,2]
[323702984,1714168262627,-634.87,0.00015068,2]
[323702985,1714168262637,-565.29,0.00015068,2]
[323702986,1714168262646,-500.0,0.00015068,2]
[323702987,1714168262656,-6336.33,0.00015068,2]
[323702988,1714168262665,-548.34,0.00015068,2]
[323702989,1714168262674,-500.0,0.00015068,2]
[323702990,1714168262683,-540.34,0.00015068,2]
[323702991,1714168262693,-619.77,0.00015068,2]
[323702992,1714168262702,-1304.73,0.00015068,2]
[323702993,1714168262711,-777.79,0.00015068,2]
[323702994,1714168262721,-4047.72,0.00015068,2]
[323702995,1714168262730,-1505.07,0.00015068,2]
[323702996,1714168262739,-1039.78,0.00015068,2]
[323702997,1714168262748,-500.0,0.00015068,2]
[323702998,1714168262758,-1828.28,0.00015068,2]
[323702999,1714168262767,-1743.91,0.00015068,2]
[323703000,1714168262776,-540.43,0.00015068,2]
[323703001,1714168262786,-500.0,0.00015068,2]
[323703002,1714168262795,-1023.77,0.00015068,2]
[323703003,1714168262804,-300.0,0.00015068,2]
[323703004,1714168262815,-400.0,0.00015176,2]
[323703005,1714168262825,-560.17,0.00015185,2]
[323703006,1714168262835,-500.0,0.00015342,2]
[323703007,1714168262845,-500.0,0.00015342,2]
[323703008,1714168262854,-500.0,0.00015342,2]
[323703009,1714168262863,-533.97876508,0.00015342,2]
[323703010,1714168262872,-500.0,0.00015342,2]
[323703011,1714168262882,-709.11,0.00015342,2]
[323703012,1714168262892,-573.99,0.00015342,2]
[323703013,1714168262902,-500.0,0.00015342,2]
[323703014,1714168262911,-170.31,0.00015342,2]
[323703015,1714168262920,-6256.15,0.00015342,2]
[323703016,1714168262930,-763.76,0.00015342,2]
[323703017,1714168262940,-500.0,0.00015342,2]
[323703018,1714168262950,-537.61,0.00015342,2]
[323703019,1714168262959,-500.0,0.00015342,2]
[323703020,1714168262969,-513.68,0.00015342,2]
[323703021,1714168262978,-1048.28,0.00015342,2]
[323703022,1714168262987,-500.0,0.00015342,2]
[323703023,1714168262996,-998.37,0.00015342,2]
[323703024,1714168263006,-2322.81,0.00015342,2]
[323703025,1714168263017,-557.8,0.00015342,2]
[323703026,1714168263027,-529.95,0.00015342,2]
[323703027,1714168263037,-535.33,0.00015342,2]
[323703028,1714168263046,-2084.26,0.00015342,2]
[323703029,1714168263058,-500.0,0.00015342,2]
[323703030,1714168263068,-500.0,0.00015342,2]
[323703031,1714168263078,-500.0,0.00015342,2]
[323703032,1714168263090,-500.0,0.00015342,2]
[323703033,1714168263101,-630.65,0.00015342,2]
[323703034,1714168263111,-583.6,0.00015342,2]
[323703035,1714168263122,-500.0,0.00015342,2]
[323703036,1714168263130,-969.38,0.00015342,2]
[323703037,1714168263139,-1520.72,0.00015342,2]
[323703038,1714168263148,-500.0,0.00015342,2]
[323703039,1714168263158,-2307.71,0.00015342,2]
[323703040,1714168263167,-500.0,0.00015342,2]
[323703041,1714168263177,-1213.91,0.00015342,2]
[323703042,1714168263186,-500.0,0.00015342,2]
[323703043,1714168263197,-21926.28,0.00015342,2]
[323703044,1714168263208,-519.31,0.00015342,2]
[323703045,1714168263218,-623.75,0.00015342,2]
[323703046,1714168263228,-634.87,0.00015342,2]
[323703047,1714168263237,-565.29,0.00015342,2]
[323703048,1714168263246,-500.0,0.00015342,2]
[323703049,1714168263255,-6336.33,0.00015342,2]
[323703050,1714168263265,-548.34,0.00015342,2]
[323703051,1714168263274,-622.51006808,0.00015342,2]
[323703052,1714168263283,-540.34,0.00015342,2]
[323703053,1714168263292,-619.77,0.00015342,2]
[323703054,1714168263301,-1304.73,0.00015342,2]
[323703055,1714168263310,-777.79,0.00015342,2]
[323703056,1714168263320,-4047.72,0.00015342,2]
[323703057,1714168263330,-1505.07,0.00015342,2]
[323703058,1714168263339,-450.0,0.00015342,2]
[323703059,1714168263349,-1039.78,0.00015342,2]
[323703060,1714168263358,-500.0,0.00015342,2]
[323703061,1714168263367,-1828.28,0.00015342,2]
[323703062,1714168263377,-1743.91,0.00015342,2]
[323703063,1714168263386,-540.43,0.00015342,2]
[323703064,1714168263395,-349.84789317,0.00015342,2]
[323703065,1714168263405,-1023.77,0.00015342,2]
[323703066,1714168263414,-600.0,0.00015418,2]
[323703067,1714168263424,-200.55612,0.00015468,2]
[323703068,1714168263433,-240.484969,0.00015468,2]
[323703069,1714168263443,-200.404141,0.00015468,2]
[323703070,1714168263454,-155.0,0.000155,2]
[323703071,1714168263464,-150.0,0.000155,2]
[323703072,1714168263473,-2741.96262222,0.00015516,2]
[323703073,1714168263482,-561.47676132,0.00015616,2]
[323703074,1714168263492,-500.0,0.00015616,2]
[323703075,1714168263501,-292.79810215,0.00015616,2]
[323703076,1714168263510,-319.36430559,0.00015616,2]
[323703077,1714168263519,-709.11,0.00015616,2]
[323703078,1714168263528,-573.99,0.00015616,2]
[323703079,1714168263538,-500.0,0.00015616,2]
[323703080,1714168263549,-6256.15,0.00015616,2]
[323703081,1714168263558,-763.76,0.00015616,2]
[323703082,1714168263567,-500.0,0.00015616,2]
[323703083,1714168263577,-537.61,0.00015616,2]
[323703084,1714168263586,-500.0,0.00015616,2]
[323703085,1714168263595,-513.68,0.00015616,2]
[323703086,1714168263605,-1048.28,0.00015616,2]
[323703087,1714168263614,-500.0,0.00015616,2]
[323703088,1714168263623,-998.37,0.00015616,2]
[323703089,1714168263632,-2322.81,0.00015616,2]
[323703090,1714168263641,-557.8,0.00015616,2]
[323703091,1714168263651,-529.95,0.00015616,2]
[323703092,1714168263660,-535.33,0.00015616,2]
[323703093,1714168263670,-2084.26,0.00015616,2]
[323703094,1714168263679,-500.0,0.00015616,2]
[323703095,1714168263688,-500.0,0.00015616,2]
[323703096,1714168263698,-500.0,0.00015616,2]
[323703097,1714168263707,-500.0,0.00015616,2]
[323703098,1714168263716,-630.65,0.00015616,2]
[323703099,1714168263726,-583.6,0.00015616,2]
[323703100,1714168263735,-500.0,0.00015616,2]
[323703101,1714168263745,-969.38,0.00015616,2]
[323703102,1714168263756,-1520.72,0.00015616,2]
[323703103,1714168263766,-500.0,0.00015616,2]
[323703104,1714168263776,-2307.71,0.00015616,2]
[323703105,1714168263785,-500.0,0.00015616,2]
[323703106,1714168263794,-1213.91,0.00015616,2]
[323703107,1714168263803,-500.0,0.00015616,2]
[323703108,1714168263813,-21926.28,0.00015616,2]
[323703109,1714168263823,-519.31,0.00015616,2]
[323703110,1714168263833,-623.75,0.00015616,2]
[323703111,1714168263842,-634.87,0.00015616,2]
[323703112,1714168263851,-565.29,0.00015616,2]
[323703113,1714168263861,-500.0,0.00015616,2]
[323703114,1714168263870,-6336.33,0.00015616,2]
[323703115,1714168263879,-548.34,0.00015616,2]
[323703116,1714168263888,-540.34,0.00015616,2]
[323703117,1714168263897,-619.77,0.00015616,2]
[323703118,1714168263906,-1304.73,0.00015616,2]
[323703119,1714168263916,-777.79,0.00015616,2]
[323703120,1714168263925,-4047.72,0.00015616,2]
[323703121,1714168263935,-1505.07,0.00015616,2]
[323703122,1714168263944,-1039.78,0.00015616,2]
[323703123,1714168263953,-500.0,0.00015616,2]
[323703124,1714168263963,-1828.28,0.00015616,2]
[323703125,1714168263972,-1743.91,0.00015616,2]
[323703126,1714168263981,-540.43,0.00015616,2]
[323703127,1714168263990,-1023.77,0.00015616,2]
[323703128,1714168263999,-240.484969,0.00015662,2]
[323703129,1714168264009,-1572.61214461,0.00015753,10]
[323703130,1714168264025,-511.0,0.00015753,2]
[323703131,1714168264035,-659.0,0.00015753,2]
[323703132,1714168264045,-167.0,0.00015831,2]
[323703133,1714168264055,-240.484969,0.00015855,2]
[323703134,1714168264064,-500.0,0.0001589,2]
[323703135,1714168264073,-709.11,0.0001589,2]
[323703136,1714168264082,-573.99,0.0001589,2]
[323703137,1714168264095,-500.0,0.0001589,2]
[323703138,1714168264105,-6256.15,0.0001589,2]
[323703139,1714168264114,-763.76,0.0001589,2]
[323703140,1714168264124,-537.61,0.0001589,2]
[323703141,1714168264133,-500.0,0.0001589,2]
[323703142,1714168264142,-397.69343814,0.0001589,2]
[323703143,1714168264152,-513.68,0.0001589,2]
[323703144,1714168264162,-1048.28,0.0001589,2]
[323703145,1714168264172,-187.92883462,0.0001589,2]
[323703146,1714168264181,-998.37,0.0001589,2]
[323703147,1714168264190,-2322.81,0.0001589,2]
[323703148,1714168264201,-557.8,0.0001589,2]
[323703149,1714168264210,-529.95,0.0001589,2]
[323703150,1714168264219,-535.33,0.0001589,2]
[323703151,1714168264228,-2084.26,0.0001589,2]
[323703152,1714168264238,-500.0,0.0001589,2]
[323703153,1714168264247,-500.0,0.0001589,2]
[323703154,1714168264257,-500.0,0.0001589,2]
[323703155,1714168264266,-500.0,0.0001589,2]
[323703156,1714168264275,-630.65,0.0001589,2]
[323703157,1714168264285,-583.6,0.0001589,2]
[323703158,1714168264295,-500.0,0.0001589,2]
[323703159,1714168264305,-969.38,0.0001589,2]
[323703160,1714168264314,-1520.72,0.0001589,2]
[323703161,1714168264324,-500.0,0.0001589,2]
[323703162,1714168264334,-2307.71,0.0001589,2]
[323703163,1714168264345,-371.72,0.0001589,2]
[323703164,1714168264356,-1213.91,0.0001589,2]
[323703165,1714168264366,-622.17110949,0.0001589,2]
[323703166,1714168264375,-21926.28,0.0001589,2]
[323703167,1714168264385,-519.31,0.0001589,2]
[323703168,1714168264394,-623.75,0.0001589,2]
[323703169,1714168264405,-634.87,0.0001589,2]
[323703170,1714168264416,-565.29,0.0001589,2]
[323703171,1714168264426,-500.0,0.0001589,2]
[323703172,1714168264436,-6336.33,0.0001589,2]
[323703173,1714168264445,-548.34,0.0001589,2]
[323703174,1714168264455,-540.34,0.0001589,2]
[323703175,1714168264466,-619.77,0.0001589,2]
[323703176,1714168264475,-1304.73,0.0001589,2]
[323703177,1714168264486,-777.79,0.0001589,2]
[323703178,1714168264495,-4047.72,0.0001589,2]
[323703179,1714168264505,-1505.07,0.0001589,2]
[323703180,1714168264515,-550.0,0.0001589,2]
[323703181,1714168264525,-1039.78,0.0001589,2]
[323703182,1714168264534,-500.0,0.0001589,2]
[323703183,1714168264543,-1828.28,0.0001589,2]
[323703184,1714168264553,-1743.91,0.0001589,2]
[323703185,1714168264563,-540.43,0.0001589,2]
[323703186,1714168264573,-1023.77,0.0001589,2]
[323703187,1714168264582,-2000.0,0.00016,2]
[323703188,1714168264592,-150.0,0.00016,2]
[323703189,1714168264601,-3417.105182,0.0001601,2]
[323703190,1714168264611,-313.8,0.0001603,2]
[323703191,1714168264621,-240.484969,0.00016048,2]
[323703192,1714168264630,-609.06151124,0.00016062,2]
[323703193,1714168264640,-163.28368971,0.00016084,2]
[323703194,1714168264650,-501.03058277,0.00016089,2]
[323703195,1714168264660,-153.63233824,0.00016098,2]
[323703196,1714168264669,-9999.99,0.00016116,2]
[323703197,1714168264679,-154.85502396,0.00016129,2]
[323703198,1714168264688,-500.0,0.00016148,2]
[323703199,1714168264697,-1000.34,0.0001615,2]
[323703200,1714168264706,-500.0,0.00016157,2]
[323703201,1714168264715,-413.60330743,0.00016164,2]
[323703202,1714168264724,-709.11,0.00016164,2]
[323703203,1714168264733,-573.99,0.00016164,2]
[323703204,1714168264743,-641.20926194,0.00016164,2]
[323703205,1714168264752,-6256.15,0.00016164,2]
[323703206,1714168264794,-763.76,0.00016164,2]
[323703207,1714168264803,-537.61,0.00016164,2]
[323703208,1714168264813,-500.0,0.00016164,2]
[323703209,1714168264822,-513.68,0.00016164,2]
[323703210,1714168264831,-1048.28,0.00016164,2]
[323703211,1714168264840,-998.37,0.00016164,2]
[323703212,1714168264849,-2322.81,0.00016164,2]
[323703213,1714168264858,-557.8,0.00016164,2]
[323703214,1714168264867,-529.95,0.00016164,2]
[323703215,1714168264876,-535.33,0.00016164,2]
[323703216,1714168264885,-2084.26,0.00016164,2]
[323703217,1714168264895,-500.0,0.00016164,2]
[323703218,1714168264905,-500.0,0.00016164,2]
[323703219,1714168264915,-500.0,0.00016164,2]
[323703220,1714168264924,-500.0,0.00016164,2]
[323703221,1714168264933,-630.65,0.00016164,2]
[323703222,1714168264943,-583.6,0.00016164,2]
[323703223,1714168264952,-500.0,0.00016164,2]
[323703224,1714168264962,-969.38,0.00016164,2]
[323703225,1714168264972,-1520.72,0.00016164,2]
[323703226,1714168264982,-517.74332235,0.00016164,2]
[323703227,1714168264992,-2307.71,0.00016164,2]
[323703228,1714168265002,-1213.91,0.00016164,2]
[323703229,1714168265012,-21926.28,0.00016164,2]
[323703230,1714168265024,-519.31,0.00016164,2]
[323703231,1714168265034,-623.75,0.00016164,2]
[323703232,1714168265046,-634.87,0.00016164,2]
[323703233,1714168265056,-565.29,0.00016164,2]
[323703234,1714168265067,-500.0,0.00016164,2]
[323703235,1714168265077,-6336.33,0.00016164,2]
[323703236,1714168265086,-548.34,0.00016164,2]
[323703237,1714168265096,-540.34,0.00016164,2]
[323703238,1714168265106,-619.77,0.00016164,2]
[323703239,1714168265116,-1304.73,0.00016164,2]
[323703240,1714168265126,-777.79,0.00016164,2]
[323703241,1714168265136,-4047.72,0.00016164,2]
[323703242,1714168265146,-1505.07,0.00016164,2]
[323703243,1714168265158,-1039.78,0.00016164,2]
[323703244,1714168265167,-500.0,0.00016164,2]
[323703245,1714168265181,-1828.28,0.00016164,2]
[323703246,1714168265191,-1743.91,0.00016164,2]
[323703247,1714168265201,-540.43,0.00016164,2]
[323703248,1714168265211,-1023.77,0.00016164,2]
[323703249,1714168265221,-500.0,0.00016166,2]
[323703250,1714168265231,-500.0,0.00016175,2]
[323703251,1714168265240,-163.07517496,0.00016175,2]
[323703252,1714168265250,-500.0,0.00016183,2]
[323703253,1714168265259,-500.0,0.00016192,2]
[323703254,1714168265269,-500.0,0.00016201,2]
[323703255,1714168265279,-284.98138062,0.00016217,2]
[323703256,1714168265289,-240.484969,0.00016242,2]
[323703257,1714168265298,-200.55612,0.00016242,2]
[323703258,1714168265309,-200.404141,0.00016242,2]
[323703259,1714168265318,-284.98138062,0.00016248,2]
[323703260,1714168265331,-407.24746971,0.00016286,2]
[323703261,1714168265341,-407.24746971,0.00016298,2]
[323703262,1714168265351,-254.99138526,0.00016341,2]
[323703263,1714168265361,-167.0,0.00016354,2]
[323703264,1714168265371,-151.59500228,0.00016357,2]
[323703265,1714168265381,-609.06151124,0.00016363,2]
[323703266,1714168265391,-200.0,0.00016371,2]
[323703267,1714168265401,-913.2,0.00016438,2]
[323703268,1714168265412,-913.2,0.00016438,2]
[323703269,1714168265422,-913.2,0.00016438,2]
[323703270,1714168265431,-913.2,0.00016438,2]
[323703271,1714168265440,-913.2,0.00016438,2]
[323703272,1714168265450,-913.2,0.00016438,2]
[323703273,1714168265459,-913.2,0.00016438,2]
[323703274,1714168265469,-913.2,0.00016438,2]
[323703275,1714168265479,-913.2,0.00016438,2]
[323703276,1714168265489,-913.2,0.00016438,2]
[323703277,1714168265499,-913.2,0.00016438,2]
[323703278,1714168265509,-913.2,0.00016438,2]
[323703279,1714168265519,-913.2,0.00016438,2]
[323703280,1714168265529,-913.2,0.00016438,2]
[323703281,1714168265538,-913.2,0.00016438,2]
[323703282,1714168265548,-913.2,0.00016438,2]
[323703283,1714168265558,-913.2,0.00016438,2]
[323703284,1714168265567,-913.2,0.00016438,2]
[323703285,1714168265577,-913.2,0.00016438,2]
[323703286,1714168265587,-913.2,0.00016438,2]
[323703287,1714168265597,-913.2,0.00016438,2]
[323703288,1714168265606,-511.0,0.00016438,2]
[323703289,1714168265616,-659.0,0.00016438,2]
[323703290,1714168265626,-709.11,0.00016438,2]
[323703291,1714168265635,-573.99,0.00016438,2]
[323703292,1714168265645,-300.0,0.00016438,2]
[323703293,1714168265655,-300.0,0.00016438,2]
[323703294,1714168265666,-300.0,0.00016438,2]
[323703295,1714168265676,-300.0,0.00016438,2]
[323703296,1714168265684,-300.0,0.00016438,2]
[323703297,1714168265693,-300.0,0.00016438,2]
[323703298,1714168265702,-300.0,0.00016438,2]
[323703299,1714168265711,-300.0,0.00016438,2]
[323703300,1714168265720,-300.0,0.00016438,2]
[323703301,1714168265730,-300.0,0.00016438,2]
[323703302,1714168265739,-300.0,0.00016438,2]
[323703303,1714168265748,-6256.15,0.00016438,2]
[323703304,1714168265758,-763.76,0.00016438,2]
[323703305,1714168265768,-537.61,0.00016438,2]
[323703306,1714168265777,-500.0,0.00016438,2]
[323703307,1714168265786,-513.68,0.00016438,2]
[323703308,1714168265795,-1048.28,0.00016438,2]
[323703309,1714168265804,-998.37,0.00016438,2]
[323703310,1714168265813,-2322.81,0.00016438,2]
[323703311,1714168265823,-557.8,0.00016438,2]
[323703312,1714168265833,-529.95,0.00016438,2]
[323703313,1714168265843,-535.33,0.00016438,2]
[323703314,1714168265852,-2084.26,0.00016438,2]
[323703315,1714168265862,-268.13697629,0.00016438,2]
[323703316,1714168265872,-500.0,0.00016438,2]
[323703317,1714168265882,-500.0,0.00016438,2]
[323703318,1714168265891,-500.0,0.00016438,2]
[323703319,1714168265901,-630.65,0.00016438,2]
[323703320,1714168265912,-583.6,0.00016438,2]
[323703321,1714168265922,-184.45139107,0.00016438,2]
[323703322,1714168265932,-969.38,0.00016438,2]
[323703323,1714168265942,-1520.72,0.00016438,2]
[323703324,1714168265952,-2307.71,0.00016438,2]
[323703325,1714168265962,-1213.91,0.00016438,2]
[323703326,1714168265972,-21926.28,0.00016438,2]
[323703327,1714168265982,-519.31,0.00016438,2]
[323703328,1714168265993,-623.75,0.00016438,2]
[323703329,1714168266004,-634.87,0.00016438,2]
[323703330,1714168266014,-565.29,0.00016438,2]
[323703331,1714168266026,-500.0,0.00016438,2]
[323703332,1714168266037,-6336.33,0.00016438,2]
[323703333,1714168266047,-548.34,0.00016438,2]
[323703334,1714168266057,-540.34,0.00016438,2]
[323703335,1714168266067,-619.77,0.00016438,2]
[323703336,1714168266077,-1304.73,0.00016438,2]
[323703337,1714168266087,-777.79,0.00016438,2]
[323703338,1714168266099,-4047.72,0.00016438,2]
[323703339,1714168266109,-1505.07,0.00016438,2]
[323703340,1714168266119,-650.0,0.00016438,2]
[323703341,1714168266129,-1039.78,0.00016438,2]
[323703342,1714168266138,-500.0,0.00016438,2]
[323703343,1714168266148,-1828.28,0.00016438,2]
[323703344,1714168266160,-1743.91,0.00016438,2]
[323703345,1714168266170,-540.43,0.00016438,2]
[323703346,1714168266181,-1023.77,0.00016438,2]
[323703347,1714168266190,-200.0,0.00016438,2]
[323703348,1714168266201,-300.0,0.00016438,2]
[323703349,1714168266212,-699.09,0.00016438,2]
[323703350,1714168266223,-181.23100013,0.00016446,2]
[323703351,1714168266233,-284.98138062,0.00016452,2]
[323703352,1714168266244,-501.03058277,0.00016458,2]
[323703353,1714168266255,-1224.09833319,0.000165,2]
[323703354,1714168266265,-150.0,0.000165,2]
[323703355,1714168266276,-609.06151124,0.0001651,2]
[323703356,1714168266287,-153.11746326,0.00016562,2]
[323703357,1714168266298,-150.0,0.00016574,2]
[323703358,1714168266308,-284.98138062,0.00016577,2]
[323703359,1714168266319,-609.06151124,0.00016585,2]
[323703360,1714168266329,-153.63233824,0.00016595,2]
[323703361,1714168266340,-407.24746971,0.0001662,2]
[323703362,1714168266351,-407.24746971,0.00016666,2]
[323703363,1714168266361,-254.99138526,0.00016675,2]
[323703364,1714168266372,-400.0,0.00016694,2]
[323703365,1714168266382,-300.0,0.00016711,2]
[323703366,1714168266393,-913.2,0.00016712,2]
[323703367,1714168266403,-709.11,0.00016712,2]
[323703368,1714168266416,-573.99,0.00016712,2]
[323703369,1714168266427,-6256.15,0.00016712,2]
[323703370,1714168266438,-763.76,0.00016712,2]
[323703371,1714168266448,-500.0,0.00016712,2]
[323703372,1714168266459,-537.61,0.00016712,2]
[323703373,1714168266469,-513.68,0.00016712,2]
[323703374,1714168266480,-1048.28,0.00016712,2]
[323703375,1714168266491,-998.37,0.00016712,2]
[323703376,1714168266502,-2322.81,0.00016712,2]
[323703377,1714168266512,-557.8,0.00016712,2]
[323703378,1714168266523,-529.95,0.00016712,2]
[323703379,1714168266533,-535.33,0.00016712,2]
[323703380,1714168266544,-2084.26,0.00016712,2]
[323703381,1714168266555,-500.0,0.00016712,2]
[323703382,1714168266566,-500.0,0.00016712,2]
[323703383,1714168266576,-375.36491591,0.00016712,2]
[323703384,1714168266586,-630.65,0.00016712,2]
[323703385,1714168266597,-583.6,0.00016712,2]
[323703386,1714168266608,-969.38,0.00016712,2]
[323703387,1714168266619,-1520.72,0.00016712,2]
[323703388,1714168266630,-2307.71,0.00016712,2]
[323703389,1714168266640,-1213.91,0.00016712,2]
[323703390,1714168266651,-21926.28,0.00016712,2]
[323703391,1714168266664,-519.31,0.00016712,2]
[323703392,1714168266675,-623.75,0.00016712,2]
[323703393,1714168266686,-565.29,0.00016712,2]
[323703394,1714168266696,-634.87,0.00016712,2]
[323703395,1714168266706,-500.0,0.00016712,2]
[323703396,1714168266717,-6336.33,0.00016712,2]
[323703397,1714168266727,-548.34,0.00016712,2]
[323703398,1714168266737,-540.34,0.00016712,2]
[323703399,1714168266747,-619.77,0.00016712,2]
[323703400,1714168266757,-1304.73,0.00016712,2]
[323703401,1714168266767,-777.79,0.00016712,2]
[323703402,1714168266778,-4047.72,0.00016712,2]
[323703403,1714168266790,-1505.07,0.00016712,2]
[323703404,1714168266800,-1039.78,0.00016712,2]
[323703405,1714168266811,-500.0,0.00016712,2]
[323703406,1714168266822,-1828.28,0.00016712,2]